fUST/lending_fUST_20250926
["ID","MTS","AMOUNT","RATE_DAILY","PERIOD"]
[387813122,1758886264311,-480.0,0.00041369,120]
[387813123,1758886264320,-2000.0,0.00041369,120]
[387813124,1758886264330,-480.0,0.00041369,120]
[387813125,1758886264339,-775.73,0.00041369,120]
[387813126,1758886264348,-1804.54,0.00041369,120]
[387813127,1758886264357,-667.41,0.00041369,120]
[387813128,1758886264367,-890.02,0.00041369,120]
[387813129,1758886264376,-911.51,0.00041369,120]
[387813130,1758886264387,-3647.69,0.00041369,120]
[387813131,1758886264396,-1929.82,0.00041369,120]
[387813132,1758886264406,-1139.95,0.00041369,120]
[387813133,1758886264415,-480.0,0.00041369,120]
[387813134,1758886264425,-672.24,0.00041369,120]
[387813135,1758886264433,-1456.76,0.00041369,120]
[387813136,1758886264443,-1256.61,0.00041369,120]
[387813137,1758886264452,-753.77205742,0.00041369,120]
[387813138,1758886264464,-304.23794258,0.00041369,120]
[387813139,1758886264473,-531.16,0.00041369,120]
[387813140,1758886264482,-707.41,0.00041369,120]
[387813141,1758886264491,-500.0,0.00041369,120]
[387813142,1758886264501,-1553.02,0.00041369,120]
[387813143,1758886264510,-1042.28,0.00041369,21]
[387813144,1758886264520,-269.11921049,0.00041369,30]
[387813145,1758886264530,-480.0,0.00041369,120]
[387813146,1758886264540,-513.82,0.00041369,120]
[387813147,1758886264549,-975.79,0.00041369,120]
[387813148,1758886264558,-956.88,0.00041369,120]
[387813149,1758886264567,-742.63,0.00041369,120]
[387813150,1758886264576,-1622.58,0.00041369,120]
[387813151,1758886264585,-923.8,0.00041369,120]
[387813152,1758886264594,-960.74,0.00041369,120]
[387813153,1758886264604,-1015.2,0.00041369,120]
[387813154,1758886264614,-692.2,0.00041369,120]
[387813155,1758886264623,-1057.22,0.00041369,120]
[387813156,1758886264632,-2000.0,0.00041369,120]
[387813157,1758886264641,-2000.0,0.00041369,120]
[387813158,1758886264650,-2000.0,0.00041369,120]
[387813159,1758886264659,-639.89,0.00041369,120]
[387813160,1758886264668,-530.28560922,0.00041369,120]
[387813161,1758886264793,-480.0,0.00038356,30]
[387813162,1758886264802,-481.87905509,0.00038356,30]
[387813163,1758886264811,-480.0,0.0003863,30]
[387813164,1758886264820,-480.0,0.0003863,30]
[387813165,1758886264829,-480.0,0.00038904,30]
[387813166,1758886264839,-151.0,0.00038904,120]
[387813167,1758886264848,-480.0,0.00038904,30]
[387813168,1758886264858,-151.0,0.00038904,120]
[387813169,1758886264871,-540.79338447,0.00039178,30]
[387813170,1758886264880,-480.0,0.00039178,30]
[387813171,1758886264889,-151.0,0.00039452,120]
[387813172,1758886264898,-151.0,0.00039452,120]
[387813173,1758886264907,-151.0,0.00039726,120]
[387813174,1758886264916,-151.0,0.00040547,120]
[387813175,1758886264925,-151.0,0.00040547,120]
[387813176,1758886264934,-151.0,0.00040896,120]
[387813177,1758886264943,-151.0,0.00040896,120]
[387813178,1758886264952,-1469.71439078,0.00041369,120]
[387813179,1758886264961,-1095.647,0.00041369,120]
[387813180,1758886264970,-1614.22,0.00041369,3]
[387813181,1758886264979,-1131.75,0.00041369,120]
[387813182,1758886264987,-1509.77,0.00041369,120]
[387813183,1758886264997,-2107.48,0.00041369,120]
[387813184,1758886265006,-480.0,0.00041369,120]
[387813185,1758886265015,-480.0,0.00041369,120]
[387813186,1758886265025,-1117.68,0.00041369,120]
[387813187,1758886265034,-480.0,0.00041369,120]
[387813188,1758886265043,-4313.75,0.00041369,120]
[387813189,1758886265051,-5619.58,0.00041369,120]
[387813190,1758886265060,-666.88,0.00041369,120]
[387813191,1758886265069,-480.0,0.00041369,120]
[387813192,1758886265078,-1231.34,0.00041369,120]
[387813193,1758886265087,-5129.75,0.00041369,120]
[387813194,1758886265096,-510.99,0.00041369,120]
[387813195,1758886265105,-200.0,0.00041419,120]
[387813196,1758886265113,-500.0,0.00041458,3]
[387813197,1758886265122,-5000.0,0.000415,100]
[387813198,1758886265131,-480.0,0.00041643,120]
[387813199,1758886265140,-1185.5,0.00041643,120]
[387813200,1758886265149,-716.53,0.00041643,120]
[387813201,1758886265159,-518.02,0.00041643,120]
[387813202,1758886265168,-151.0,0.00041643,120]
[387813203,1758886265177,-548.41,0.00041643,120]
[387813204,1758886265185,-151.0,0.00041643,14]
[387813205,1758886265195,-1173.31,0.00041643,120]
[387813206,1758886265204,-951.8,0.00041643,120]
[387813207,1758886265213,-480.0,0.00041643,120]
[387813208,1758886265222,-151.0,0.00041643,120]
[387813209,1758886265231,-1250.3,0.00041643,120]
[387813210,1758886265241,-480.0,0.00041643,120]
[387813211,1758886265251,-449.62762343,0.00041643,120]
[387813212,1758886265261,-480.0,0.00041643,120]
[387813213,1758886265270,-480.0,0.00041643,120]
[387813214,1758886265279,-480.0,0.00041643,120]
[387813215,1758886265289,-151.0,0.00041643,120]
[387813216,1758886265299,-151.0,0.00041643,120]
[387813217,1758886265308,-531.24,0.00041643,120]
[387813218,1758886265317,-151.0,0.00041643,120]
[387813219,1758886265327,-151.0,0.00041643,120]
[387813220,1758886265336,-480.0,0.00041643,120]
[387813221,1758886265345,-519.19,0.00041643,120]
[387813222,1758886265354,-480.0,0.00041643,120]
[387813223,1758886265364,-1257.23,0.00041643,120]
[387813224,1758886265373,-480.0,0.00041643,120]
[387813225,1758886265382,-1140.79,0.00041643,120]
[387813226,1758886265392,-4563.8,0.00041643,120]
[387813227,1758886265401,-1477.84,0.00041643,120]
[387813228,1758886265410,-949.16,0.00041643,120]
[387813229,1758886265420,-927.1,0.00041643,30]
[387813230,1758886265430,-2921.82,0.00041643,120]
[387813231,1758886265439,-1657.92,0.00041643,120]
[387813232,1758886265448,-914.89,0.00041643,120]
[387813233,1758886265458,-151.0,0.00041643,120]
[387813234,1758886265467,-2209.22,0.00041643,120]
[387813235,1758886265476,-151.0,0.00041643,120]
[387813236,1758886265486,-151.0,0.00041643,120]
[387813237,1758886265495,-480.0,0.00041643,120]
[387813238,1758886265506,-480.0,0.00041643,120]
[387813239,1758886265516,-775.73,0.00041643,120]
[387813240,1758886265526,-1804.54,0.00041643,120]
[387813241,1758886265535,-667.41,0.00041643,120]
[387813242,1758886265544,-890.02,0.00041643,120]
[387813243,1758886265554,-911.51,0.00041643,120]
[387813244,1758886265564,-3647.69,0.00041643,120]
[387813245,1758886265574,-1929.82,0.00041643,120]
[387813246,1758886265583,-1139.95,0.00041643,120]
[387813247,1758886265592,-480.0,0.00041643,120]
[387813248,1758886265603,-672.24,0.00041643,120]
[387813249,1758886265612,-1456.76,0.00041643,120]
[387813250,1758886265622,-1256.61,0.00041643,120]
[387813251,1758886265632,-1058.01,0.00041643,120]
[387813252,1758886265642,-531.16,0.00041643,120]
[387813253,1758886265651,-500.0,0.00041643,120]
[387813254,1758886265660,-707.41,0.00041643,120]
[387813255,1758886265670,-1553.02,0.00041643,120]
[387813256,1758886265679,-1042.28,0.00041643,21]
[387813257,1758886265688,-480.0,0.00041643,120]
[387813258,1758886265698,-513.82,0.00041643,120]
[387813259,1758886265707,-975.79,0.00041643,120]
[387813260,1758886265718,-956.88,0.00041643,120]
[387813261,1758886265727,-742.63,0.00041643,120]
[387813262,1758886265749,-1622.58,0.00041643,120]
[387813263,1758886265758,-923.8,0.00041643,120]
[387813264,1758886265767,-960.74,0.00041643,120]
[387813265,1758886265776,-1015.2,0.00041643,120]
[387813266,1758886265786,-692.2,0.00041643,120]
[387813267,1758886265795,-1057.22,0.00041643,120]
[387813268,1758886265805,-639.89,0.00041643,120]
[387813269,1758886265814,-1614.22,0.00041643,3]
[387813270,1758886265823,-1131.75,0.00041643,120]
[387813271,1758886265834,-1509.77,0.00041643,120]
[387813272,1758886265844,-2107.48,0.00041643,120]
[387813273,1758886265853,-480.0,0.00041643,120]
[387813274,1758886265863,-1117.68,0.00041643,120]
[387813275,1758886265876,-480.0,0.00041643,120]
[387813276,1758886265885,-4313.75,0.00041643,120]
[387813277,1758886265895,-5619.58,0.00041643,120]
[387813278,1758886265904,-414.8683715,0.00041643,120]
[387813279,1758886265915,-666.88,0.00041643,120]
[387813280,1758886265925,-480.0,0.00041643,120]
[387813281,1758886265934,-1231.34,0.00041643,120]
[387813282,1758886265944,-5129.75,0.00041643,120]
[387813283,1758886265955,-510.99,0.00041643,120]
[387813284,1758886265965,-500.0,0.00041732,3]
[387813285,1758886265975,-544.72289,0.00041745,2]
[387813286,1758886265985,-480.0,0.00041917,120]
[387813287,1758886265994,-151.0,0.00041917,120]
[387813288,1758886266004,-1185.5,0.00041917,120]
[387813289,1758886266014,-716.53,0.00041917,120]
[387813290,1758886266023,-518.02,0.00041917,120]
[387813291,1758886266032,-548.41,0.00041917,120]
[387813292,1758886266041,-1173.31,0.00041917,120]
[387813293,1758886266051,-951.8,0.00041917,120]
[387813294,1758886266061,-480.0,0.00041917,120]
[387813295,1758886266070,-1250.3,0.00041917,120]
[387813296,1758886266080,-480.0,0.00041917,120]
[387813297,1758886266089,-480.0,0.00041917,120]
[387813298,1758886266099,-480.0,0.00041917,120]
[387813299,1758886266108,-531.24,0.00041917,120]
[387813300,1758886266117,-480.0,0.00041917,120]
[387813301,1758886266127,-519.19,0.00041917,120]
[387813302,1758886266137,-480.0,0.00041917,120]
[387813303,1758886266147,-1257.23,0.00041917,120]
[387813304,1758886266228,-1140.79,0.00041917,120]
[387813305,1758886266237,-4563.8,0.00041917,120]
[387813306,1758886266247,-1477.84,0.00041917,120]
[387813307,1758886266256,-949.16,0.00041917,120]
[387813308,1758886266266,-927.1,0.00041917,30]
[387813309,1758886266275,-2921.82,0.00041917,120]
[387813310,1758886266285,-1657.92,0.00041917,120]
[387813311,1758886266294,-914.89,0.00041917,120]
[387813312,1758886266304,-2209.22,0.00041917,120]
[387813313,1758886266313,-480.0,0.00041917,120]
[387813314,1758886266323,-480.0,0.00041917,120]
[387813315,1758886266333,-775.73,0.00041917,120]
[387813316,1758886266342,-1804.54,0.00041917,120]
[387813317,1758886266352,-667.41,0.00041917,120]
[387813318,1758886266361,-890.02,0.00041917,120]
[387813319,1758886266371,-911.51,0.00041917,120]
[387813320,1758886266380,-3647.69,0.00041917,120]
[387813321,1758886266390,-1929.82,0.00041917,120]
[387813322,1758886266399,-1139.95,0.00041917,120]
[387813323,1758886266409,-250.93391628,0.00041917,120]
[387813324,1758886266419,-672.24,0.00041917,120]
[387813325,1758886266428,-1456.76,0.00041917,120]
[387813326,1758886266438,-1256.61,0.00041917,120]
[387813327,1758886266447,-1058.01,0.00041917,120]
[387813328,1758886266456,-531.16,0.00041917,120]
[387813329,1758886266466,-500.0,0.00041917,120]
[387813330,1758886266475,-707.41,0.00041917,120]
[387813331,1758886266484,-1553.02,0.00041917,120]
[387813332,1758886266493,-1042.28,0.00041917,21]
[387813333,1758886266504,-192.59761083,0.00041917,120]
[387813334,1758886266513,-513.82,0.00041917,120]
[387813335,1758886266524,-975.79,0.00041917,120]
[387813336,1758886266533,-956.88,0.00041917,120]
[387813337,1758886266543,-742.63,0.00041917,120]
[387813338,1758886266552,-1622.58,0.00041917,120]
[387813339,1758886266562,-923.8,0.00041917,120]
[387813340,1758886266571,-960.74,0.00041917,120]
[387813341,1758886266581,-1015.2,0.00041917,120]
[387813342,1758886266590,-692.2,0.00041917,120]
[387813343,1758886266599,-1057.22,0.00041917,120]
[387813344,1758886266609,-639.89,0.00041917,120]
[387813345,1758886266619,-1614.22,0.00041917,3]
[387813346,1758886266630,-1131.75,0.00041917,120]
[387813347,1758886266640,-611.74,0.00041917,120]
[387813348,1758886266650,-1509.77,0.00041917,120]
[387813349,1758886266659,-2107.48,0.00041917,120]
[387813350,1758886266668,-480.0,0.00041917,120]
[387813351,1758886266678,-1117.68,0.00041917,120]
[387813352,1758886266687,-480.0,0.00041917,120]
[387813353,1758886266698,-4313.75,0.00041917,120]
[387813354,1758886266709,-5619.58,0.00041917,120]
[387813355,1758886266719,-666.88,0.00041917,120]
[387813356,1758886266729,-480.0,0.00041917,120]
[387813357,1758886266743,-1231.34,0.00041917,120]
[387813358,1758886266754,-5129.75,0.00041917,120]
[387813359,1758886266764,-510.99,0.00041917,120]
[387813360,1758886266774,-709.03014452,0.00042,120]
[387813361,1758886266783,-1000.0,0.00042,3]
[387813362,1758886266793,-13898.5436216,0.00042,120]
[387813363,1758886266803,-160.0,0.00042,120]
[387813364,1758886266813,-417.15472785,0.00042,120]
[387813365,1758886266823,-160.0,0.00042,120]
[387813366,1758886266832,-500.0,0.00042006,3]
[387813367,1758886266843,-376.16810556,0.00042103,39]
[387813368,1758886266851,-155.060084,0.00042191,120]
[387813369,1758886266861,-151.0,0.00042191,120]
[387813370,1758886266873,-151.0,0.00042191,120]
[387813371,1758886266882,-152.352054,0.00042191,120]
[387813372,1758886266892,-480.0,0.00042191,120]
[387813373,1758886266901,-1185.5,0.00042191,120]
[387813374,1758886266911,-716.53,0.00042191,120]
[387813375,1758886266920,-518.02,0.00042191,120]
[387813376,1758886266930,-548.41,0.00042191,120]
[387813377,1758886266939,-1173.31,0.00042191,120]
[387813378,1758886266951,-951.8,0.00042191,120]
[387813379,1758886266961,-480.0,0.00042191,120]
[387813380,1758886266971,-1250.3,0.00042191,120]
[387813381,1758886266979,-480.0,0.00042191,120]
[387813382,1758886266988,-480.0,0.00042191,120]
[387813383,1758886266998,-480.0,0.00042191,120]
[387813384,1758886267008,-531.24,0.00042191,120]
[387813385,1758886267018,-480.0,0.00042191,120]
[387813386,1758886267028,-519.19,0.00042191,120]
[387813387,1758886267037,-480.0,0.00042191,120]
[387813388,1758886267047,-1257.23,0.00042191,120]
[387813389,1758886267056,-1140.79,0.00042191,120]
[387813390,1758886267066,-4563.8,0.00042191,120]
[387813391,1758886267076,-1477.84,0.00042191,120]
[387813392,1758886267085,-949.16,0.00042191,120]
[387813393,1758886267095,-927.1,0.00042191,30]
[387813394,1758886267105,-2921.82,0.00042191,120]
[387813395,1758886267114,-1657.92,0.00042191,120]
[387813396,1758886267123,-914.89,0.00042191,120]
[387813397,1758886267133,-2209.22,0.00042191,120]
[387813398,1758886267142,-480.0,0.00042191,120]
[387813399,1758886267152,-480.0,0.00042191,120]
[387813400,1758886267161,-775.73,0.00042191,120]
[387813401,1758886267171,-1804.54,0.00042191,120]
[387813402,1758886267181,-667.41,0.00042191,120]
[387813403,1758886267190,-890.02,0.00042191,120]
[387813404,1758886267199,-911.51,0.00042191,120]
[387813405,1758886267208,-3647.69,0.00042191,120]
[387813406,1758886267218,-1929.82,0.00042191,120]
[387813407,1758886267228,-1139.95,0.00042191,120]
[387813408,1758886267237,-672.24,0.00042191,120]
[387813409,1758886267247,-1456.76,0.00042191,120]
[387813410,1758886267257,-1256.61,0.00042191,120]
[387813411,1758886267267,-1058.01,0.00042191,120]
[387813412,1758886267276,-531.16,0.00042191,120]
[387813413,1758886267285,-500.0,0.00042191,120]
[387813414,1758886267294,-707.41,0.00042191,120]
[387813415,1758886267303,-1553.02,0.00042191,120]
[387813416,1758886267312,-1042.28,0.00042191,21]
[387813417,1758886267321,-513.82,0.00042191,120]
[387813418,1758886267330,-975.79,0.00042191,120]
[387813419,1758886267339,-956.88,0.00042191,120]
[387813420,1758886267348,-742.63,0.00042191,120]
[387813421,1758886267358,-1622.58,0.00042191,120]
[387813422,1758886267367,-923.8,0.00042191,120]
[387813423,1758886267376,-960.74,0.00042191,120]
[387813424,1758886267385,-1015.2,0.00042191,120]
[387813425,1758886267395,-692.2,0.00042191,120]
[387813426,1758886267404,-1057.22,0.00042191,120]
[387813427,1758886267414,-639.89,0.00042191,120]
[387813428,1758886267423,-1614.22,0.00042191,3]
[387813429,1758886267432,-1131.75,0.00042191,120]
[387813430,1758886267442,-1509.77,0.00042191,120]
[387813431,1758886267452,-2107.48,0.00042191,120]
[387813432,1758886267462,-491.42130071,0.00042191,120]
[387813433,1758886267471,-1117.68,0.00042191,120]
[387813434,1758886267481,-480.0,0.00042191,120]
[387813435,1758886267490,-4313.75,0.00042191,120]
[387813436,1758886267501,-5619.58,0.00042191,120]
[387813437,1758886267511,-666.88,0.00042191,120]
[387813438,1758886267520,-480.0,0.00042191,120]
[387813439,1758886267530,-1231.34,0.00042191,120]
[387813440,1758886267539,-5129.75,0.00042191,120]
[387813441,1758886267548,-510.99,0.00042191,120]
[387813442,1758886267558,-344.73511378,0.00042241,120]
[387813443,1758886267568,-500.0,0.0004228,3]
[387813444,1758886267577,-2000.0,0.000423,31]
[387813445,1758886267587,-480.0,0.00042465,120]
[387813446,1758886267596,-1185.5,0.00042465,120]
[387813447,1758886267606,-716.53,0.00042465,120]
[387813448,1758886267615,-518.02,0.00042465,120]
[387813449,1758886267624,-548.41,0.00042465,120]
[387813450,1758886267634,-1173.31,0.00042465,120]
[387813451,1758886267643,-951.8,0.00042465,120]
[387813452,1758886267653,-480.0,0.00042465,120]
[387813453,1758886267662,-1250.3,0.00042465,120]
[387813454,1758886267671,-480.0,0.00042465,120]
[387813455,1758886267680,-480.0,0.00042465,120]
[387813456,1758886267689,-173.79782999,0.00042465,120]
[387813457,1758886267697,-531.24,0.00042465,120]
[387813458,1758886267707,-273.59961874,0.00042465,120]
[387813459,1758886267716,-519.19,0.00042465,120]
[387813460,1758886267725,-480.0,0.00042465,120]
[387813461,1758886267734,-1257.23,0.00042465,120]
[387813462,1758886267744,-1140.79,0.00042465,120]
[387813463,1758886267755,-4563.8,0.00042465,120]
[387813464,1758886267764,-1477.84,0.00042465,120]
[387813465,1758886267774,-949.16,0.00042465,120]
[387813466,1758886267783,-927.1,0.00042465,30]
[387813467,1758886267792,-2921.82,0.00042465,120]
[387813468,1758886267801,-1657.92,0.00042465,120]
[387813469,1758886267810,-914.89,0.00042465,120]
[387813470,1758886267818,-2209.22,0.00042465,120]
[387813471,1758886267828,-480.0,0.00042465,120]
[387813472,1758886267836,-480.0,0.00042465,120]
[387813473,1758886267846,-775.73,0.00042465,120]
[387813474,1758886267855,-1804.54,0.00042465,120]
[387813475,1758886267864,-667.41,0.00042465,120]
[387813476,1758886267876,-890.02,0.00042465,120]
[387813477,1758886267885,-911.51,0.00042465,120]
[387813478,1758886267894,-3647.69,0.00042465,120]
[387813479,1758886267903,-1929.82,0.00042465,120]
[387813480,1758886267912,-1139.95,0.00042465,120]
[387813481,1758886267921,-672.24,0.00042465,120]
[387813482,1758886267930,-1456.76,0.00042465,120]
[387813483,1758886267940,-1256.61,0.00042465,120]
[387813484,1758886267950,-1058.01,0.00042465,120]
[387813485,1758886267960,-531.16,0.00042465,120]
[387813486,1758886267969,-707.41,0.00042465,120]
[387813487,1758886267978,-500.0,0.00042465,120]
[387813488,1758886267987,-1553.02,0.00042465,120]
[387813489,1758886267996,-1042.28,0.00042465,21]
[387813490,1758886268006,-513.82,0.00042465,120]
[387813491,1758886268015,-975.79,0.00042465,120]
[387813492,1758886268023,-956.88,0.00042465,120]
[387813493,1758886268032,-742.63,0.00042465,120]
[387813494,1758886268042,-1191.47080416,0.00042465,120]
[387813495,1758886268867,-431.10919584,0.00042465,120]
[387813496,1758886268881,-923.8,0.00042465,120]
[387813497,1758886268890,-960.74,0.00042465,120]
[387813498,1758886268900,-1015.2,0.00042465,120]
[387813499,1758886268910,-692.2,0.00042465,120]
[387813500,1758886268920,-1057.22,0.00042465,120]
[387813501,1758886268930,-639.89,0.00042465,120]
[387813502,1758886268940,-1614.22,0.00042465,3]
[387813503,1758886268952,-1131.75,0.00042465,120]
[387813504,1758886268962,-1509.77,0.00042465,120]
[387813505,1758886268972,-2107.48,0.00042465,120]
[387813506,1758886268982,-1117.68,0.00042465,120]
[387813507,1758886268991,-480.0,0.00042465,120]
[387813508,1758886269001,-4313.75,0.00042465,120]
[387813509,1758886269010,-5619.58,0.00042465,120]
[387813510,1758886269019,-666.88,0.00042465,120]
[387813511,1758886269029,-480.0,0.00042465,120]
[387813512,1758886269038,-1231.34,0.00042465,120]
[387813513,1758886269047,-5129.75,0.00042465,120]
[387813514,1758886269056,-510.99,0.00042465,120]
[387813515,1758886269065,-5000.0,0.000425,120]
[387813516,1758886269075,-500.0,0.00042554,3]
[387813517,1758886269084,-294.0,0.000426,120]
[387813518,1758886269178,-151.0,0.00042739,120]
[387813519,1758886269189,-1185.5,0.00042739,120]
[387813520,1758886269199,-716.53,0.00042739,120]
[387813521,1758886269209,-518.02,0.00042739,120]
[387813522,1758886269218,-151.0,0.00042739,120]
[387813523,1758886269227,-548.41,0.00042739,120]
[387813524,1758886269236,-1173.31,0.00042739,120]
[387813525,1758886269245,-951.8,0.00042739,120]
[387813526,1758886269256,-291.73913372,0.00042739,120]
[387813527,1758886269266,-1250.3,0.00042739,120]
[387813528,1758886269276,-480.0,0.00042739,120]
[387813529,1758886269285,-480.0,0.00042739,120]
[387813530,1758886269294,-531.24,0.00042739,120]
[387813531,1758886269302,-519.19,0.00042739,120]
[387813532,1758886269311,-480.0,0.00042739,120]
[387813533,1758886269320,-1257.23,0.00042739,120]
[387813534,1758886269330,-1140.79,0.00042739,120]
[387813535,1758886269340,-4563.8,0.00042739,120]
[387813536,1758886269350,-1477.84,0.00042739,120]
[387813537,1758886269360,-949.16,0.00042739,120]
[387813538,1758886269370,-220.13602817,0.00042739,30]
[387813539,1758886331344,200.62298964,0.000199,2]
[387813544,1758886410005,2000.0,0.00030835,30]
[387813545,1758886410837,1351.299999,0.00030835,30]
[387813546,1758886414102,2000.0,0.00030835,30]
[387813547,1758886414577,2000.0,0.00030835,30]
[387813548,1758886415374,1082.899999,0.00030835,30]
[387813550,1758886686469,5000.0,0.00024,8]
[387813551,1758886710885,3889.20080219,0.00024,8]
[387813552,1758886755524,-230.07237305,0.000199,2]
[387813553,1758886755552,-230.0723728,0.00020972,2]
[387813554,1758886755580,-2000.0,0.000215,2]
[387813555,1758886755609,-230.0723728,0.00022044,2]
[387813556,1758886755636,-417.15472785,0.00023003,2]
[387813557,1758886755665,-230.0723728,0.00023116,2]
[387813558,1758886755694,-1110.79919781,0.00024,8]
[387813559,1758886755722,-500.0,0.00024054,2]
[387813560,1758886766128,-230.0723728,0.00024187,2]
[387813561,1758886787650,-5000.0,0.0002475,2]
[387813562,1758886795574,-1000.0,0.00025,2]
[387813563,1758886795602,-1000.0,0.00025,2]
[387813564,1758886795632,-1000.0,0.00025,2]
[387813565,1758886795660,-1000.0,0.00025,2]
[387813566,1758886795690,-1000.0,0.00025,2]
[387813567,1758886829325,-282.10284675,0.000199,2]
[387813568,1758886835381,-101.35110791,0.000199,2]
[387813588,1758886964772,2000.0,0.00030882,30]
[387813589,1758886965226,2000.0,0.00030882,30]
[387813590,1758886965563,1082.099999,0.00030882,30]
[387813591,1758886996210,-275.70701699,0.000199,2]
[387813592,1758887085135,368.75,0.00028767,120]
[387813613,1758887209546,5000.0,0.00021,6]
[387813614,1758887234186,5000.0,0.00021,6]
[387813630,1758887431805,-281.95768232,0.00019701,2]
[387813631,1758887431860,-4718.04231768,0.00019701,2]
[387813632,1758887431869,-300.0,0.000199,2]
[387813633,1758887431878,-500.0,0.00023296,2]
[387813634,1758887431887,-500.0,0.00023659,2]
[387813635,1758887431896,-300.0,0.00023999,2]
[387813636,1758887431905,-1200.0,0.00023999,2]
[387813637,1758887431914,-1000.0,0.00024,2]
[387813638,1758887431924,-1000.0,0.00024,2]
[387813639,1758887431933,-1000.0,0.00024,2]
[387813640,1758887431943,-1000.0,0.00024,2]
[387813641,1758887431952,-1000.0,0.00024,2]
[387813642,1758887431962,-8633.21674903,0.00024,2]
[387813643,1758887431971,-512.7692454,0.00024218,2]
[387813644,1758887431981,-875.6670887,0.00024617,2]
[387813645,1758887431990,-500.0,0.00024718,2]
[387813646,1758887432000,-417.15472785,0.00024975,2]
[387813647,1758887432009,-500.0,0.00025101,7]
[387813648,1758887432019,-160.0,0.00025214,2]
[387813649,1758887432028,-500.0,0.00025245,7]
[387813650,1758887432037,-500.0,0.00025429,7]
[387813652,1758887432047,-500.0,0.00025759,7]
[387813653,1758887432056,-500.0,0.0002582,7]
[387813654,1758887432066,-1680.0,0.00026145,2]
[387813655,1758887432075,-500.0,0.00026737,7]
[387813656,1758887432083,-342.03622417,0.00026762,2]
[387813657,1758887432092,-545.46848807,0.00026834,7]
[387813658,1758887432101,-765.78688714,0.00026843,2]
[387813659,1758887432110,-666.0,0.00027017,2]
[387813660,1758887432120,-165.169,0.00027287,16]
[387813661,1758887432130,-500.0,0.00027437,7]
[387813662,1758887432139,-178.74,0.00027768,7]
[387813663,1758887432148,-500.0,0.0002827,7]
[387813664,1758887432158,-500.0,0.0002828,7]
[387813665,1758887432167,-500.0,0.00029164,7]
[387813666,1758887432176,-500.0,0.00029536,2]
[387813667,1758887432190,-500.0,0.00030247,7]
[387813668,1758887432199,-3063.14754855,0.00030659,2]
[387813669,1758887432208,-500.0,0.00031768,7]
[387813670,1758887432218,-1136.90554883,0.00032,120]
[387813671,1758887432227,-1328.9089081,0.00032,120]
[387813672,1758887432236,-518.16919467,0.00032,120]
[387813673,1758887432245,-380.16,0.00032,120]
[387813674,1758887432254,-160.85935619,0.00032,120]
[387813675,1758887432264,-429.21193196,0.00032,120]
[387813676,1758887432274,-1154.10435632,0.00032,120]
[387813677,1758887432283,-183.28330123,0.00032,120]
[387813678,1758887432292,-1136.90554883,0.000323,120]
[387813679,1758887432301,-1328.9089081,0.000323,120]
[387813680,1758887432311,-518.16919467,0.000323,120]
[387813681,1758887432320,-380.16,0.000323,120]